bitfinex-derivatives/quotes_BTCF0:USTF0_20241213
["timestamp","ask_amount","ask_price","bid_price","bid_amount"]
[1734070675605,0.050009,99957.0,99955.0,0.25492212]
[1734070675812,0.050009,99957.0,99956.0,0.25492212]
[1734070676007,0.050009,99957.0,99956.0,0.82492212]
[1734070676718,0.050009,99957.0,99956.0,0.25492212]
[1734070677320,0.050009,99957.0,99956.0,0.25592212]
[1734070677907,0.051009,99957.0,99956.0,0.26192212]
[1734070679318,0.052009,99957.0,99956.0,0.26192212]
[1734070679516,0.052009,99957.0,99956.0,0.25492212]
[1734070679725,0.052009,99957.0,99956.0,0.26192212]
[1734070680113,0.052009,99957.0,99956.0,0.25492212]
[1734070680323,0.052009,99957.0,99956.0,0.26092212]
[1734070681120,0.052009,99957.0,99956.0,0.31093112]
[1734070683217,0.051009,99957.0,99956.0,0.30493112]
[1734070683422,0.052009,99957.0,99956.0,0.31093112]
[1734070684417,0.051009,99957.0,99956.0,0.31093112]
[1734070687726,0.052009,99957.0,99956.0,0.31093112]
[1734070689423,0.051009,99957.0,99956.0,0.31093112]
[1734070690327,0.050009,99957.0,99956.0,0.31093112]
[1734070690519,0.1415914,99957.0,99956.0,0.31093112]
[1734070691318,0.052009,99957.0,99956.0,0.31093112]
[1734070693431,0.052009,99957.0,99956.0,0.35470369]
[1734070694024,0.052009,99957.0,99956.0,0.31093112]
[1734070694328,0.052009,99957.0,99956.0,0.35470503]
[1734070694528,0.1035732,99957.0,99956.0,0.31093112]
[1734070694830,0.052009,99957.0,99956.0,0.31093112]
[1734070695028,0.20173437,99957.0,99956.0,0.056009]
[1734070695330,0.20173437,99957.0,99956.0,0.31093112]
[1734070695529,0.051009,99957.0,99956.0,0.31093112]
[1734070696133,0.051009,99957.0,99956.0,0.30993112]
[1734070696337,0.051009,99957.0,99956.0,0.35370371]
[1734070696526,0.051009,99957.0,99956.0,0.43431207]
[1734070696934,0.051009,99957.0,99956.0,0.3905395]
[1734070699129,0.051009,99957.0,99956.0,0.43431195]
[1734070701253,0.001,99957.0,99956.0,0.43431195]
[1734070701534,0.12084307,99957.0,99956.0,0.4908435]
[1734070701742,0.11984307,99960.0,99959.0,0.050008]
[1734070701938,0.11984307,99961.0,99960.0,0.050007]
[1734070702237,0.11984307,99963.0,99960.0,0.08803155]
[1734070702427,0.11987547,99962.0,99961.0,0.10653855]
[1734070702827,0.11987547,99962.0,99961.0,0.36146067]
[1734070703036,0.14972537,99969.0,99962.0,0.050006]
[1734070703227,0.14972537,99970.0,99968.0,0.30492512]
[1734070703427,0.14972537,99969.0,99968.0,0.050003]
[1734070703628,0.14972537,99971.0,99970.0,0.050002]
[1734070704141,0.14972537,99974.0,99970.0,0.25492212]
[1734070704331,0.14972537,99976.0,99967.0,0.08060838]
[1734070704641,0.11984583,99968.0,99967.0,0.13061238]
[1734070704844,0.11984583,99968.0,99967.0,0.17437647]
[1734070705031,0.11984583,99968.0,99967.0,0.99929859]
[1734070705231,0.12084583,99969.0,99967.0,0.99929859]
[1734070705436,0.12084583,99969.0,99968.0,0.04376409]
[1734070705631,0.12084583,99969.0,99968.0,0.29868621]
[1734070706340,0.11984583,99970.0,99969.0,0.050003]
[1734070706534,0.11984583,99970.0,99969.0,0.09376709]
[1734070706741,0.11984583,99970.0,99969.0,0.34868921]
[1734070707133,0.11984583,99970.0,99969.0,0.09376709]
[1734070707339,0.11984583,99971.0,99969.0,0.34868921]
[1734070707543,0.11984583,99971.0,99970.0,0.04376409]
[1734070707733,0.11984583,99971.0,99970.0,0.29868621]
[1734070709334,0.11984583,99972.0,99971.0,0.050002]
[1734070709537,0.11984583,99972.0,99971.0,0.09376609]
[1734070709731,0.11984583,99972.0,99971.0,0.34868821]
[1734070710343,0.3608,99977.0,99971.0,0.34868821]
[1734070710344,0.11984583,99973.0,99971.0,0.34868821]
[1734070710546,0.002,99972.0,99971.0,0.050002]
[1734070710845,0.12184583,99972.0,99971.0,0.093766]
[1734070711044,0.002,99972.0,99971.0,0.34868812]
[1734070711550,0.002,99972.0,99971.0,0.35068812]
[1734070711936,0.11984583,99974.0,99973.0,0.050001]
[1734070712246,0.11984583,99974.0,99973.0,0.30492312]
[1734070712745,0.11984583,99978.0,99976.0,0.049999]
[1734070712946,0.11984583,99981.0,99977.0,0.04376171]
[1734070713138,0.11984583,99981.0,99980.0,0.049997]
[1734070713344,0.11984583,99982.0,99980.0,0.34867931]
[1734070713539,0.11984583,99982.0,99981.0,0.049997]
[1734070713748,0.11984583,99982.0,99981.0,0.30491912]
[1734070714141,0.11984583,99983.0,99981.0,0.30491912]
[1734070714336,0.3608,99988.0,99983.0,0.049996]
[1734070714337,0.11984583,99985.0,99983.0,0.049996]
[1734070714541,0.11984583,99986.0,99985.0,0.049995]
[1734070715050,0.3608,99988.0,99987.0,0.049994]
[1734070715343,0.3608,99988.0,99987.0,0.30491612]
[1734070716238,0.3698,99988.0,99987.0,0.30591612]
[1734070716846,0.3738,99988.0,99987.0,0.30691612]
[1734070718346,0.49340172,99988.0,99987.0,0.30691612]
[1734070720549,0.49340172,99988.0,99987.0,0.15688376]
[1734070721466,0.3738,99988.0,99987.0,0.15688376]
[1734070721842,0.3738,99988.0,99987.0,0.20687776]
[1734070724456,0.49339238,99988.0,99987.0,0.20687776]
[1734070726452,0.3738,99988.0,99987.0,0.20687776]
[1734070731360,0.42563458,99988.0,99987.0,0.20687776]
[1734070732355,0.42563458,99988.0,99987.0,0.051994]
[1734070732558,0.42563458,99988.0,99987.0,0.20687776]
[1734070740066,0.42566739,99988.0,99987.0,0.20687776]
[1734070740771,0.42566739,99988.0,99987.0,0.002]
[1734070741260,0.52567989,99988.0,99987.0,0.002]
[1734070741458,0.7247812,99988.0,99987.0,0.002]
[1734070742970,0.72462026,99988.0,99987.0,0.002]
[1734070743759,0.52543755,99988.0,99987.0,0.002]
[1734070744354,0.53540764,99988.0,99987.0,0.002]
[1734070745365,0.58540064,99988.0,99987.0,0.002]
[1734070746101,0.53540764,99988.0,99987.0,0.20687776]
[1734070746260,0.06462505,99988.0,99987.0,0.28748614]
[1734070746463,0.013,99988.0,99987.0,0.28748614]
[1734070746664,0.013,99988.0,99987.0,0.91405]
[1734070749166,0.013,99988.0,99987.0,0.92427564]
[1734070749666,0.013,99988.0,99987.0,0.9680313]
[1734070750769,0.013,99988.0,99987.0,0.92427564]
[1734070751870,0.14991916,99997.0,99987.0,0.92427564]
[1734070752072,0.3298347,100000.0,99996.0,0.3608]
[1734070752381,0.17991554,100010.0,100000.0,0.049987]
[1734070752576,0.17991554,100010.0,100000.0,0.38579311]
[1734070752874,0.17991554,100010.0,100000.0,0.95579311]
[1734070753863,0.17991554,100010.0,100000.0,0.95579291]
[1734070754064,0.17991554,100010.0,100000.0,0.95679291]
[1734070754263,0.004,100010.0,100000.0,0.914043]
[1734070754470,0.004,100010.0,100000.0,0.85747914]
[1734070757161,0.004,100010.0,100000.0,0.86753921]
[1734070767473,0.004,100010.0,100000.0,0.91128757]
[1734070767681,0.58293696,100030.0,100020.0,0.049977]
[1734070767879,0.58293696,100030.0,100020.0,0.20486076]
[1734070768080,0.40302142,100030.0,100020.0,0.20486076]
[1734070769075,0.3929,100030.0,100020.0,0.20486076]
[1734070769875,0.3929,100030.0,100020.0,0.20586076]
[1734070770081,0.3929,100030.0,100020.0,0.20686076]
[1734070770782,0.542847,100030.0,100020.0,0.20686076]
[1734070771083,0.72276254,100030.0,100020.0,0.20686076]
[1734070773484,0.72276254,100030.0,100020.0,0.051977]
[1734070773873,0.72276254,100030.0,100000.0,0.71069936]
[1734070774082,0.4255,100020.0,100010.0,0.15488376]
[1734070774389,0.4255,100020.0,100000.0,0.15488376]
[1734070774390,0.65539754,100020.0,100000.0,0.15488376]
[1734070774680,0.443486,100010.0,100000.0,0.20486876]
[1734070774880,0.62340154,100010.0,100000.0,0.20486876]
[1734070775588,0.62340154,100010.0,100000.0,0.20586876]
[1734070775880,0.62340154,100010.0,100000.0,0.20686876]
[1734070776385,0.62340154,100010.0,100000.0,0.20586876]
[1734070776578,0.62440154,100010.0,100000.0,0.20686876]
[1734070779690,0.62440154,100010.0,100000.0,0.25062105]
[1734070781584,0.62440154,100010.0,100000.0,0.77686876]
[1734070782013,0.72439654,100010.0,100000.0,0.002]
[1734070782489,0.72417539,100010.0,100000.0,0.002]
[1734070782676,0.544481,100010.0,100000.0,0.002]
[1734070783490,0.72415352,100010.0,100000.0,0.002]
[1734070784481,0.74385056,100010.0,100000.0,0.002]
[1734070789392,0.74385056,100010.0,100000.0,0.15688376]
[1734070789594,0.74375786,100010.0,100000.0,0.15688376]
[1734070799200,0.72406082,100010.0,100000.0,0.15688376]
[1734070800401,0.544481,100010.0,100000.0,0.15688376]
[1734070800603,0.7241512,100010.0,100000.0,0.15688376]
[1734070802399,0.544481,100010.0,100000.0,0.15688376]
[1734070803297,0.56478972,100010.0,100000.0,0.15688376]
[1734070803515,0.050986,100010.0,100000.0,0.28747914]
[1734070803704,0.050986,100010.0,100000.0,0.35257914]
[1734070804306,0.050986,100010.0,100000.0,0.39633225]
[1734070804504,0.411786,100010.0,100000.0,0.39633225]
[1734070804709,0.59166251,100010.0,100000.0,0.39633225]
[1734070805005,0.59166251,100010.0,100000.0,0.35257914]
[1734070805209,0.59166251,100010.0,100000.0,0.39633204]
[1734070805809,0.59166251,100010.0,100000.0,0.35257914]
[1734070806010,0.59166251,100010.0,100000.0,0.39633231]
[1734070806309,0.511781,100010.0,100000.0,0.14770838]
[1734070806515,0.543181,100010.0,100000.0,0.26999214]
[1734070807114,0.75303693,100010.0,100000.0,0.31374657]
[1734070807919,0.543181,100010.0,100000.0,0.26999214]
[1734070809013,0.60619403,100010.0,100000.0,0.26999214]
[1734070811708,0.81604996,100010.0,100000.0,0.26999214]
[1734070812204,0.81604996,100010.0,100000.0,0.31374721]
[1734070812405,0.60619403,100010.0,100000.0,0.26999214]
[1734070816028,0.81604996,100010.0,100000.0,0.26999214]
[1734070817115,0.75303693,100010.0,100000.0,0.26999214]
[1734070817412,0.81604996,100010.0,100000.0,0.26999214]
[1734070818221,0.81604996,100010.0,100000.0,0.18938376]
[1734070821313,0.83585659,100010.0,100000.0,0.2331388]
[1734070822418,0.80445659,100010.0,100000.0,0.34664718]
[1734070822614,0.26084193,100010.0,100000.0,0.39206486]
[1734070822841,0.26084193,100010.0,100000.0,0.44864045]
[1734070823011,0.050986,100010.0,100000.0,0.38562742]
[1734070823209,0.09995176,100010.0,100000.0,0.44864045]
[1734070823415,0.27983528,100010.0,100000.0,0.44864045]
[1734070823617,0.23091939,100010.0,100000.0,0.44864045]
[1734070823811,0.23091939,100010.0,100000.0,0.43561442]
[1734070824224,0.23091939,100010.0,100000.0,1.00561442]
[1734070824631,0.38080272,100010.0,100000.0,1.00561442]
[1734070825512,0.38080272,100010.0,100000.0,1.0862228]
[1734070830818,0.38080272,100010.0,100000.0,1.04246776]
[1734070831923,0.38080272,100010.0,100000.0,0.47246776]
[1734070836141,0.38080272,100010.0,100000.0,0.51621782]
[1734070836334,0.38080272,100010.0,100000.0,0.47246776]
[1734070841439,0.38080272,100010.0,100000.0,0.51621737]
[1734070841738,0.38080272,100010.0,100000.0,0.87701737]
[1734070842832,0.38080272,100010.0,100000.0,1.44701737]
[1734070843328,0.20086933,100010.0,100000.0,1.38400434]
[1734070843522,0.20086933,100010.0,100000.0,0.81400434]
[1734070843830,0.23346933,100010.0,100000.0,0.87701737]
[1734070844725,0.41340272,100010.0,100000.0,0.87701737]
[1734070849830,0.26351939,100010.0,100000.0,1.44701737]
[1734070850838,0.68733242,100010.0,100000.0,0.30719596]
[1734070851233,0.50739903,100010.0,100000.0,0.82062037]
[1734070852533,0.444386,100010.0,100000.0,0.82062037]
[1734070852732,0.444386,100010.0,100000.0,0.8836334]
[1734070853937,0.444386,100010.0,100000.0,0.83988379]
[1734070855545,0.444386,100010.0,100000.0,0.89642912]
[1734070855934,0.411786,100010.0,100000.0,0.94018174]
[1734070856235,0.411786,100010.0,100000.0,1.00398174]
[1734070856435,0.59165329,100010.0,100000.0,1.00398174]
[1734070856835,0.59165329,100010.0,100000.0,1.08459012]
[1734070860642,0.59165329,100010.0,100000.0,1.0408375]
[1734070863846,0.59165329,100010.0,100000.0,0.4708375]
[1734070864047,0.59165329,100010.0,100000.0,0.39022912]
[1734070866838,0.23085329,100010.0,100000.0,0.39022912]
[1734070867248,0.38073115,100010.0,100000.0,0.4708375]
[1734070867553,0.38073115,100010.0,100000.0,0.53385053]
[1734070867750,0.33074003,100010.0,100000.0,0.85779162]
[1734070867955,0.3608,100020.0,100010.0,0.049982]
[1734070867956,0.54063987,100020.0,100010.0,0.049982]
[1734070868147,0.54063987,100020.0,100010.0,0.39867359]
[1734070868455,0.54063987,100020.0,100010.0,0.47928197]
[1734070868752,0.54063987,100020.0,100010.0,0.71881093]
[1734070869154,0.54163987,100020.0,100010.0,0.71981093]
[1734070869849,0.54163987,100020.0,100010.0,1.29081093]
[1734070873355,0.54163987,100020.0,100010.0,1.06135637]
[1734070874745,0.54163987,100020.0,100010.0,0.99834334]
[1734070874951,0.54163987,100020.0,100010.0,1.06135637]
[1734070875362,0.3618,100020.0,100010.0,1.30088533]
[1734070878258,0.3618,100020.0,100010.0,1.25713586]
[1734070878655,0.001,100020.0,100010.0,1.25713586]
[1734070879163,0.1207638,100020.0,100010.0,1.25713586]
[1734070879356,0.1207638,100020.0,100010.0,1.32014889]
[1734070880057,0.1207638,100020.0,100010.0,1.68094889]
[1734070880253,0.2105741,100020.0,100010.0,1.72469357]
[1734070883585,0.2105741,100020.0,100010.0,1.59866751]
[1734070884070,0.2105741,100020.0,100010.0,1.66168054]
[1734070886371,0.2105741,100020.0,100010.0,1.63118054]
[1734070887870,0.2105741,100020.0,100010.0,1.63508054]
[1734070890577,0.2105741,100020.0,100010.0,1.57206751]
[1734070890772,0.2105741,100020.0,100010.0,1.63508054]
[1734070891183,0.2105741,100020.0,100010.0,1.48019678]
[1734070891381,0.2105741,100020.0,100010.0,1.63508054]
[1734070891683,0.2105741,100020.0,100010.0,0.97577537]
[1734070891888,0.59455383,100020.0,100010.0,1.12058473]
[1734070892686,0.411777,100020.0,100010.0,1.18359776]
[1734070892884,0.050977,100020.0,100010.0,0.51330775]
[1734070893281,0.050977,100020.0,100010.0,1.08330775]
[1734070897783,0.20080794,100020.0,100010.0,1.08330775]
[1734070899085,0.20080794,100020.0,100010.0,1.09343583]
[1734070900691,0.15083094,100020.0,100010.0,1.09343583]
[1734070900888,0.15083094,100020.0,100010.0,1.99755328]
[1734070901094,0.27070078,100020.0,100010.0,1.99755328]
[1734070901286,0.27070078,100020.0,100010.0,2.03075328]
[1734070901592,0.27070078,100020.0,100010.0,1.96774025]
[1734070903388,0.27070078,100020.0,100010.0,1.72821129]
[1734070910282,0.27070078,100020.0,100010.0,1.57332753]
[1734070910489,0.27070078,100020.0,100010.0,1.72821129]
[1734070911089,0.27070078,100020.0,100010.0,1.57332753]
[1734070911392,0.27070078,100020.0,100010.0,1.72821129]
[1734070913282,0.27070078,100020.0,100010.0,1.66519826]
[1734070913490,0.27070078,100020.0,100010.0,1.72821129]
[1734070913887,0.27070078,100020.0,100010.0,1.96782198]
[1734070914991,0.15083094,100020.0,100010.0,1.72821129]
[1734070915194,0.15083094,100020.0,100010.0,1.68446661]
[1734070918996,0.001,100020.0,100010.0,1.68446661]
[1734070922293,0.27071046,100020.0,100010.0,1.72821129]
[1734070925806,0.27071046,100020.0,100010.0,1.66519826]
[1734070926099,0.20080794,100020.0,100010.0,1.58825358]
[1734070926300,0.20080794,100020.0,100010.0,1.5076452]
[1734070926499,0.23160794,100020.0,100010.0,1.57065823]
[1734070927807,0.23160794,100020.0,100010.0,1.20985823]
[1734070928102,0.23160794,100020.0,100010.0,1.4495535]
[1734070928296,0.26200794,100020.0,100010.0,1.4495535]
[1734070930505,0.44158944,100020.0,100010.0,1.49329874]
[1734070933302,0.44158944,100020.0,100010.0,0.92329874]
[1734070935113,0.45172263,100020.0,100010.0,0.92329874]
[1734070935712,0.38038944,100020.0,100010.0,0.92329874]
[1734070937906,0.38038944,100020.0,100010.0,0.76841498]
[1734070938211,0.20080794,100020.0,100010.0,0.92329874]
[1734070939309,0.20080794,100020.0,100010.0,1.49329874]
[1734070941006,0.20080794,100020.0,100010.0,0.86028571]
[1734070941211,0.20080794,100020.0,100010.0,0.92329874]
[1734070941416,0.20080794,100020.0,100010.0,0.8795535]
[1734070947127,0.20080794,100020.0,100010.0,0.72466974]
[1734070947341,0.20080794,100020.0,100010.0,0.8795535]
[1734070950020,0.20080794,100020.0,100010.0,0.92329836]
[1734070955735,0.20080794,100020.0,100010.0,0.68360309]
[1734070955736,0.38038944,100020.0,100010.0,0.68360309]
[1734070956229,0.38038944,100020.0,100010.0,0.92329165]
[1734070956633,0.38038944,100020.0,100010.0,0.68360309]
[1734070957325,0.38038944,100020.0,100010.0,0.92330013]
[1734070965136,0.38038944,100020.0,100010.0,0.76841637]
[1734070965335,0.38038944,100020.0,100010.0,0.92330013]
[1734070966234,0.38038944,100020.0,100010.0,0.76841637]
[1734070966441,0.38038944,100020.0,100010.0,0.92330013]
[1734070967139,0.33041244,100020.0,100010.0,1.00390851]
[1734070967530,0.15083094,100020.0,100010.0,1.03510851]
[1734070970142,0.15083094,100020.0,100010.0,0.88022475]
[1734070970339,0.15083094,100020.0,100010.0,1.03510851]
[1734070970535,0.33041244,100020.0,100010.0,1.03510851]
[1734070971333,0.15083094,100020.0,100010.0,0.79541147]
[1734070972630,0.15083094,100020.0,100010.0,0.64052771]
[1734070972836,0.15083094,100020.0,100010.0,0.79541147]
[1734070977037,0.15083094,100020.0,100010.0,1.15621147]
[1734070977342,0.15083094,100020.0,100010.0,0.79541147]
[1734070978144,0.27075623,100020.0,100010.0,0.79541147]
[1734070980651,0.15083094,100020.0,100010.0,1.15621147]
[1734070980846,0.2707487,100020.0,100010.0,1.15621147]
[1734070982054,0.2707487,100020.0,100010.0,1.09319844]
[1734070982248,0.2707487,100020.0,100010.0,1.15621147]
[1734070992453,0.2707487,100020.0,100010.0,1.51573595]
[1734070995543,0.2707487,100020.0,100010.0,1.15621147]
[1734070998549,0.15083094,100020.0,100010.0,1.51573595]
[1734070999658,0.001,100020.0,100010.0,0.85680027]
[1734071001054,0.001,100020.0,100010.0,0.80026011]
[1734071002065,0.27088694,100020.0,100010.0,1.5158898]
[1734071002355,0.27088694,100020.0,100010.0,2.0858898]
[1734071003150,0.32086394,100020.0,100010.0,2.0858898]
[1734071004379,0.32086394,100020.0,100010.0,1.36556524]
[1734071005046,0.20091419,100020.0,100010.0,1.36556524]
[1734071005456,0.20091419,100020.0,100010.0,1.30255221]
[1734071005457,0.32085806,100020.0,100010.0,1.30255221]
[1734071005652,0.20091419,100020.0,100010.0,1.36556524]
[1734071006860,0.20091419,100020.0,100010.0,1.32182038]
[1734071014166,0.20091419,100020.0,100010.0,1.3655654]
[1734071016474,0.20091419,100020.0,100010.0,1.60523592]
[1734071016660,0.56171419,100020.0,100010.0,1.53209481]
[1734071016867,0.86766488,100020.0,100010.0,0.75655352]
[1734071017060,0.86766488,100020.0,100010.0,0.34581231]
[1734071017061,0.53780306,100020.0,100010.0,0.34581231]
[1734071017268,0.90810013,100020.0,100010.0,0.04964635]
[1734071017472,0.572162,100020.0,100010.0,0.04964635]
[1734071017669,0.23080114,100020.0,100010.0,0.57000411]
[1734071017965,0.38065006,100020.0,100010.0,0.61375348]
[1734071024171,0.38065006,100020.0,100010.0,1.18375348]
[1734071024577,0.74145006,100020.0,100010.0,1.07075845]
[1734071025084,0.80446309,100020.0,100010.0,0.68040541]
[1734071025578,0.80446309,100020.0,100010.0,1.25040541]
[1734071025776,0.74145006,100020.0,100010.0,1.09552165]
[1734071025968,0.74145006,100020.0,100010.0,0.68040541]
[1734071027674,0.80446309,100020.0,100010.0,0.68040541]
[1734071030187,0.74145006,100020.0,100010.0,0.74341844]
[1734071030693,0.74145006,100020.0,100010.0,0.69966907]
[1734071034688,0.74145006,100020.0,100010.0,0.74341604]
[1734071038191,0.74145006,100020.0,100010.0,0.64310838]
[1734071040400,0.56162592,100020.0,100010.0,0.52000658]
[1734071041605,0.56162592,100020.0,100010.0,0.56998858]
[1734071041807,0.56162592,100020.0,100010.0,0.51344342]
[1734071043304,0.74145006,100020.0,100010.0,0.56999589]
[1734071046400,0.59160114,100020.0,100010.0,0.56999589]
[1734071046803,0.59160114,100020.0,100010.0,0.61374259]
[1734071047395,0.59160114,100020.0,100010.0,0.6137426]
[1734071049201,0.59160114,100020.0,100010.0,0.50074757]
[1734071050006,0.59160114,100020.0,100010.0,0.5637606]
[1734071050204,0.59160114,100020.0,100010.0,0.5598606]
[1734071051203,0.59160114,100020.0,100010.0,0.73974915]
[1734071051415,0.59160114,100020.0,100010.0,0.50330813]
[1734071051707,0.59160114,100020.0,100010.0,0.45956142]
[1734071052406,0.59160114,100020.0,100010.0,0.51617488]
[1734071053408,0.59160114,100020.0,100010.0,0.46346142]
[1734071054606,0.411777,100020.0,100010.0,0.46346142]
[1734071055509,0.411777,100020.0,100010.0,0.51344342]
[1734071056206,0.59160114,100020.0,100010.0,0.50954342]
[1734071057800,0.59160114,100020.0,100010.0,0.56616814]
[1734071059301,0.59160114,100020.0,100010.0,0.57006814]
[1734071059508,0.59160114,100020.0,100010.0,0.61381481]
[1734071062217,0.59160114,100020.0,100010.0,0.60991481]
[1734071064920,0.38075577,100020.0,100010.0,0.94638032]
[1734071065113,0.33077877,100020.0,100010.0,1.0219255]
[1734071065421,0.33077877,100020.0,100010.0,1.0258255]
[1734071069022,0.15095463,100020.0,100010.0,1.0258255]
[1734071069216,0.15095463,100020.0,100010.0,1.03588235]
[1734071074314,0.15095463,100020.0,100010.0,1.03198235]
[1734071077214,0.15095463,100020.0,100010.0,1.03588235]
[1734071080230,0.15095463,100020.0,100010.0,1.03198235]
[1734071083249,0.15095463,100020.0,100010.0,1.03588235]
[1734071083954,0.20093163,100020.0,100010.0,1.03588235]
[1734071084265,0.8045688,100020.0,100010.0,0.55080029]
[1734071084634,0.68761417,100020.0,100010.0,0.50705511]
[1734071084837,0.71971417,100020.0,100010.0,0.57006814]
[1734071085038,0.71971417,100020.0,100010.0,0.61381543]
[1734071087334,0.65670114,100020.0,100010.0,0.61381543]
[1734071089333,0.65670114,100020.0,100010.0,0.60991543]
[1734071092327,0.65670114,100020.0,100010.0,0.61381543]
[1734071098437,0.65670114,100020.0,100010.0,0.60991543]
[1734071101442,0.65670114,100020.0,100010.0,0.61381543]
[1734071103342,0.62370114,100020.0,100010.0,0.61381543]
[1734071104441,0.62370114,100020.0,100010.0,0.60991543]
[1734071105630,0.62370114,100020.0,100010.0,0.56616814]
[1734071107434,0.62370114,100020.0,100010.0,0.57006814]
[1734071109140,0.62370114,100020.0,100010.0,0.61381543]
[1734071110344,0.59160114,100020.0,100010.0,0.60991543]
[1734071112731,0.59160114,100020.0,100010.0,0.45317311]
[1734071112937,0.59160114,100020.0,100010.0,0.51618614]
[1734071113236,0.59160114,100020.0,100010.0,0.55993345]
[1734071113436,0.59160114,100020.0,100010.0,0.56383345]
[1734071117543,0.59160114,100020.0,100010.0,0.50082042]
[1734071117845,0.411777,100020.0,100010.0,0.56383345]
[1734071118243,0.411777,100020.0,100010.0,0.74382381]
[1734071119235,0.47479003,100020.0,100010.0,0.52592702]
[1734071119445,0.57477503,100020.0,100010.0,0.68081078]
[1734071120845,0.75465071,100020.0,100010.0,0.63706347]
[1734071121046,0.69163768,100020.0,100010.0,0.63706347]
[1734071121267,0.69163768,100020.0,100010.0,0.7000765]
[1734071122248,0.69163768,100020.0,100010.0,0.7500585]
[1734071122448,0.69163768,100020.0,100010.0,0.7461585]
[1734071122643,0.69163768,100020.0,100010.0,0.59127474]
[1734071122944,0.69163768,100020.0,100010.0,0.7461585]
[1734071125345,0.69163768,100020.0,100010.0,0.51344342]
[1734071125550,0.69163768,100020.0,100010.0,1.08344342]
[1734071128241,0.69163768,100020.0,100010.0,0.84377879]
[1734071128450,0.69163768,100020.0,100010.0,0.83987879]
[1734071129152,0.69163768,100020.0,100010.0,0.89649309]
[1734071129554,0.59165268,100020.0,100010.0,0.32649309]
[1734071129745,0.59165268,100020.0,100010.0,0.56615772]
[1734071129947,0.59165268,100020.0,100010.0,0.59805772]
[1734071130147,0.59165268,100020.0,100010.0,0.64180568]
[1734071130547,0.59165268,100020.0,100010.0,0.72241406]
[1734071131344,0.59165268,100020.0,100010.0,0.72631406]
[1734071132950,0.59165268,100020.0,100010.0,0.9821699]
[1734071132951,0.20084193,100020.0,100010.0,0.9821699]
[1734071133759,0.15086493,100020.0,100010.0,0.9821699]
[1734071133945,0.15086493,100020.0,100010.0,1.3429699]
[1734071134151,0.33074061,100020.0,100010.0,1.36911846]
[1734071134358,0.14696493,100020.0,100010.0,1.36521846]
[1734071134551,0.26684311,100020.0,100010.0,1.0625408]
[1734071135153,0.26684311,100020.0,100010.0,1.12555383]
[1734071135358,0.26684311,100020.0,100010.0,1.0625408]
[1734071135554,0.26684311,100020.0,100010.0,1.14314918]
[1734071135757,0.26684311,100020.0,100010.0,1.48507839]
[1734071135758,0.11987818,100020.0,100010.0,1.48507839]
[1734071135960,0.22984968,100030.0,100020.0,0.049977]
[1734071136159,0.22984968,100030.0,100020.0,1.04940766]
[1734071136360,0.049974,100030.0,100020.0,1.3097397]
[1734071136656,0.049974,100030.0,100020.0,2.22146778]
[1734071136860,0.049974,100030.0,100020.0,2.26521169]
[1734071137058,0.049974,100030.0,100020.0,2.26621169]
[1734071137364,0.049974,100030.0,100020.0,1.92443035]
[1734071137659,0.049974,100030.0,100020.0,2.04536375]
[1734071138052,0.57067493,100040.0,100020.0,2.04536375]
[1734071138364,0.72061893,100040.0,100030.0,0.21789679]
[1734071138561,0.72061893,100040.0,100030.0,0.26786879]
[1734071140660,0.72061893,100040.0,100030.0,0.26886879]
[1734071140865,0.72061893,100040.0,100030.0,0.26986879]
[1734071142857,0.78363196,100040.0,100030.0,0.26986879]
[1734071144574,0.72061893,100040.0,100030.0,0.26986879]
[1734071145674,0.54074325,100040.0,100030.0,0.26986879]
[1734071155683,0.60375628,100040.0,100030.0,0.26986879]
[1734071157376,0.60375628,100040.0,100030.0,0.44953849]
[1734071157377,0.78363196,100040.0,100030.0,0.44953849]
[1734071157576,0.72061893,100040.0,100030.0,0.26986879]
[1734071158278,0.60059767,100040.0,100030.0,0.26986879]
[1734071158577,0.42072199,100040.0,100030.0,0.26986879]
[1734071158788,0.42072199,100040.0,100030.0,0.83986879]
[1734071158975,0.42072199,100040.0,100030.0,0.26986879]
[1734071159687,0.60034778,100040.0,100030.0,0.44952947]
[1734071159984,0.60034778,100040.0,100030.0,0.44852947]
[1734071160171,0.42072199,100040.0,100030.0,0.68907705]
[1734071160375,0.60034778,100040.0,100030.0,0.68907705]
[1734071165373,0.60034778,100040.0,100030.0,0.74563346]
[1734071168978,0.60034778,100040.0,100030.0,0.78937133]
[1734071174000,0.60034778,100040.0,100030.0,0.79938353]
[1734071175489,0.55037878,100040.0,100030.0,0.79938353]
[1734071177094,0.32950925,100040.0,100030.0,1.50051489]
[1734071177387,0.32950925,100040.0,100030.0,1.53244328]
[1734071178092,0.14988346,100040.0,100030.0,1.53244328]
[1734071181599,0.14988346,100040.0,100030.0,1.52243108]
[1734071181792,0.14988346,100040.0,100030.0,0.70690666]
[1734071182504,0.14988346,100040.0,100030.0,0.78751504]
[1734071182797,0.14988346,100040.0,100030.0,0.74377717]
[1734071191796,0.14988346,100040.0,100030.0,1.3394965]
[1734071192187,0.14988346,100040.0,100030.0,1.60282285]
[1734071193894,0.14988346,100040.0,100030.0,2.17282285]
[1734071195398,0.14988346,100040.0,100030.0,1.95323437]
[1734071195606,0.14988346,100040.0,100030.0,2.17273547]
[1734071198496,0.14988346,100040.0,100030.0,1.93304916]
[1734071198806,0.63139981,100050.0,100040.0,0.049967]
[1734071198807,0.55169348,100050.0,100040.0,0.049967]
[1734071199007,0.55169348,100050.0,100040.0,0.5075469]
[1734071199597,0.55169348,100050.0,100040.0,1.0775469]
[1734071200301,0.55169348,100050.0,100040.0,1.0785469]
[1734071200704,0.55169348,100050.0,100040.0,1.14155993]
[1734071201098,0.55169348,100050.0,100040.0,0.57155993]
[1734071201795,0.58143581,100050.0,100040.0,0.80891208]
[1734071203408,0.58143581,100050.0,100040.0,0.74589905]
[1734071203608,0.63139781,100050.0,100040.0,0.74589905]
[1734071203822,0.69441084,100050.0,100040.0,0.68288602]
[1734071204110,0.79436586,100050.0,100040.0,0.62628855]
[1734071204311,0.79436586,100050.0,100040.0,0.68930158]
[1734071204702,0.79436586,100050.0,100040.0,0.5062213]
[1734071205102,0.79436586,100050.0,100040.0,0.68930158]
[1734071208308,0.79436586,100050.0,100040.0,0.74591352]
[1734071211214,0.73135283,100050.0,100040.0,0.74591352]
[1734071218709,0.73135283,100050.0,100040.0,0.5095469]
[1734071223514,0.73135283,100050.0,100040.0,0.68929354]
[1734071223718,0.73135283,100050.0,100040.0,0.5095469]
[1734071224920,0.55172704,100050.0,100040.0,0.74581338]
[1734071228142,0.57203964,100050.0,100040.0,0.74581338]
[1734071228615,0.75192502,100050.0,100040.0,0.74581338]
[1734071233528,0.57203964,100050.0,100040.0,0.74581338]
[1734071233723,0.75197081,100050.0,100040.0,0.74581338]
[1734071234330,0.57203964,100050.0,100040.0,0.77691338]
[1734071236333,0.57203964,100050.0,100040.0,0.80801338]